[Event "Live Chess"]
[Site "Chess.com"]
[Date "2023.05.21"]
[Round "-"]
[White "Long1968"]
[Black "ramses-IIG"]
[Result "0-1"]
[WhiteElo "1009"]
[BlackElo "874"]
[TimeControl "300"]
[EndTime "19:32:28 PDT"]
[Termination "ramses-IIG won on time"]

1. e4 {[%clk 0:04:56.8]} 1... d5 {[%clk 0:04:59.9]} 2. exd5 {[%clk 0:04:54.6]}
2... Qxd5 {[%clk 0:04:59.8]} 3. Nc3 {[%clk 0:04:51.8]} 3... Qe6+ {[%clk
0:04:59.7]} 4. Be2 {[%clk 0:04:49.5]} 4... Qg6 {[%clk 0:04:59.6]} 5. Nf3 {[%clk
0:04:44.2]} 5... Qxg2 {[%clk 0:04:56.8]} 6. Rg1 {[%clk 0:04:42.1]} 6... Qh3
{[%clk 0:04:56.7]} 7. Rg3 {[%clk 0:04:39.7]} 7... Qe6 {[%clk 0:04:53.9]} 8. d4
{[%clk 0:04:36.3]} 8... c6 {[%clk 0:04:52.2]} 9. Be3 {[%clk 0:04:25.7]} 9... Qf6
{[%clk 0:04:50.9]} 10. Qd2 {[%clk 0:04:21.4]} 10... e6 {[%clk 0:04:49.2]} 11.
O-O-O {[%clk 0:04:14.8]} 11... Bd6 {[%clk 0:04:46.9]} 12. Rg2 {[%clk 0:03:59.7]}
12... Qd8 {[%clk 0:04:45.5]} 13. Ne4 {[%clk 0:03:47.1]} 13... g6 {[%clk
0:04:32.7]} 14. Nxd6+ {[%clk 0:03:34.4]} 14... Qxd6 {[%clk 0:04:32.6]} 15. Bf4
{[%clk 0:03:30.2]} 15... Qd7 {[%clk 0:04:25.3]} 16. Ne5 {[%clk 0:03:25.8]} 16...
Qd8 {[%clk 0:04:23.2]} 17. Bg5 {[%clk 0:03:04.8]} 17... Nf6 {[%clk 0:04:16.9]}
18. Qf4 {[%clk 0:02:49.9]} 18... Nbd7 {[%clk 0:03:46.3]} 19. Nxd7 {[%clk
0:02:25.2]} 19... Qxd7 {[%clk 0:03:43.3]} 20. Qxf6 {[%clk 0:02:18.6]} 20... Rg8
{[%clk 0:03:37.5]} 21. Bg4 {[%clk 0:02:02.5]} 21... Qd6 {[%clk 0:03:24.7]} 22.
Bf4 {[%clk 0:01:40.7]} 22... Qe7 {[%clk 0:03:16.8]} 23. Be5 {[%clk 0:01:32]}
23... Qxf6 {[%clk 0:03:15.1]} 24. Bxf6 {[%clk 0:01:28.9]} 24... g5 {[%clk
0:03:14.2]} 25. c4 {[%clk 0:01:21.9]} 25... Rg6 {[%clk 0:03:12.2]} 26. Be5
{[%clk 0:01:11]} 26... h6 {[%clk 0:03:09.8]} 27. Re1 {[%clk 0:01:01.4]} 27... b6
{[%clk 0:03:00.1]} 28. Bf3 {[%clk 0:00:54]} 28... Ke7 {[%clk 0:02:58.3]} 29. h4
{[%clk 0:00:43.2]} 29... Bb7 {[%clk 0:02:54.7]} 30. Be4 {[%clk 0:00:30.9]} 30...
Rgg8 {[%clk 0:02:47.2]} 31. hxg5 {[%clk 0:00:20.5]} 31... hxg5 {[%clk
0:02:40.1]} 32. Reg1 {[%clk 0:00:16.7]} 32... f6 {[%clk 0:02:37.4]} 33. Bh2
{[%clk 0:00:12.1]} 33... Rad8 {[%clk 0:02:31]} 34. Rd1 {[%clk 0:00:07]} 34... g4
{[%clk 0:02:27.4]} 35. f3 {[%clk 0:00:02.3]} 35... f5 {[%clk 0:02:20.8]} 0-1

[Event "Live Chess"]
[Site "Chess.com"]
[Date "2023.05.21"]
[Round "-"]
[White "romchyk1219"]
[Black "Tushinskiy"]
[Result "0-1"]
[WhiteElo "639"]
[BlackElo "2189"]
[TimeControl "300"]
[EndTime "19:33:05 PDT"]
[Termination "Tushinskiy won by checkmate"]

1. e4 {[%clk 0:04:58.5]} 1... e5 {[%clk 0:04:59]} 2. Nf3 {[%clk 0:04:56.9]} 2...
d6 {[%clk 0:04:58.1]} 3. d4 {[%clk 0:04:54]} 3... Bg4 {[%clk 0:04:57.1]} 4. dxe5
{[%clk 0:04:49.8]} 4... Nd7 {[%clk 0:04:53.4]} 5. exd6 {[%clk 0:04:48]} 5...
Bxd6 {[%clk 0:04:49.8]} 6. h3 {[%clk 0:04:45.9]} 6... Bh5 {[%clk 0:04:48.1]} 7.
Bc4 {[%clk 0:04:41.4]} 7... Qe7 {[%clk 0:04:47.1]} 8. Nc3 {[%clk 0:04:34.4]}
8... Ngf6 {[%clk 0:04:46.1]} 9. Bd3 {[%clk 0:04:28.8]} 9... O-O-O {[%clk
0:04:45.2]} 10. O-O {[%clk 0:04:27.3]} 10... Ne5 {[%clk 0:04:40.3]} 11. Nxe5
{[%clk 0:04:25.3]} 11... Bxd1 {[%clk 0:04:38.3]} 12. Bg5 {[%clk 0:04:22.2]}
12... Qxe5 {[%clk 0:04:34.9]} 13. Bxf6 {[%clk 0:04:19.3]} 13... Qh2# {[%clk
0:04:33.4]} 0-1

[Event "Live Chess"]
[Site "Chess.com"]
[Date "2023.05.21"]
[Round "-"]
[White "Singapourfeuj"]
[Black "Biranidun"]
[Result "1-0"]
[WhiteElo "2157"]
[BlackElo "2513"]
[TimeControl "300"]
[EndTime "19:33:37 PDT"]
[Termination "Singapourfeuj won by resignation"]

1. d4 {[%clk 0:04:59]} 1... Nf6 {[%clk 0:04:58.7]} 2. Nf3 {[%clk 0:04:57.7]}
2... g6 {[%clk 0:04:58.2]} 3. c4 {[%clk 0:04:52.5]} 3... Bg7 {[%clk 0:04:57.7]}
4. Nc3 {[%clk 0:04:51.7]} 4... O-O {[%clk 0:04:57]} 5. e4 {[%clk 0:04:50.7]}
5... d6 {[%clk 0:04:56.7]} 6. Be2 {[%clk 0:04:49.9]} 6... e5 {[%clk 0:04:55.9]}
7. d5 {[%clk 0:04:49.2]} 7... a5 {[%clk 0:04:53.3]} 8. Bg5 {[%clk 0:04:47.9]}
8... h6 {[%clk 0:04:52.6]} 9. Be3 {[%clk 0:04:46.3]} 9... Ng4 {[%clk 0:04:51.2]}
10. Bd2 {[%clk 0:04:45.6]} 10... f5 {[%clk 0:04:49.6]} 11. h3 {[%clk 0:04:43]}
11... Nf6 {[%clk 0:04:48.7]} 12. exf5 {[%clk 0:04:40.8]} 12... gxf5 {[%clk
0:04:47.8]} 13. g4 {[%clk 0:04:39.7]} 13... Na6 {[%clk 0:04:33.1]} 14. g5 {[%clk
0:04:34.7]} 14... hxg5 {[%clk 0:04:29.9]} 15. Bxg5 {[%clk 0:04:33.6]} 15... Qe8
{[%clk 0:04:26.4]} 16. Nh4 {[%clk 0:04:31.3]} 16... Nc5 {[%clk 0:04:23.2]} 17.
Rg1 {[%clk 0:04:29.9]} 17... Kh7 {[%clk 0:04:14.6]} 18. Bxf6 {[%clk 0:04:24.8]}
18... Bxf6 {[%clk 0:04:12.4]} 19. Bh5 {[%clk 0:04:23.5]} 19... Qe7 {[%clk
0:03:04.6]} 20. Bg6+ {[%clk 0:04:21.5]} 20... Kg7 {[%clk 0:03:03.8]} 21. Qh5
{[%clk 0:04:02]} 21... Rg8 {[%clk 0:00:56.2]} 22. Bxf5+ {[%clk 0:03:53.6]} 22...
Kf8 {[%clk 0:00:55.5]} 23. Ng6+ {[%clk 0:03:44.6]} 23... Rxg6 {[%clk 0:00:54.1]}
24. Qxg6 {[%clk 0:03:43.7]} 24... Bg7 {[%clk 0:00:48.6]} 25. O-O-O {[%clk
0:03:36.8]} 25... Bxf5 {[%clk 0:00:46.6]} 26. Qxf5+ {[%clk 0:03:35.8]} 26... Qf6
{[%clk 0:00:41.7]} 27. Qxf6+ {[%clk 0:03:34.5]} 27... Bxf6 {[%clk 0:00:41.6]}
28. f3 {[%clk 0:03:33.4]} 28... Ke7 {[%clk 0:00:40]} 29. Ne4 {[%clk 0:03:31.5]}
29... Bh8 {[%clk 0:00:35.5]} 30. h4 {[%clk 0:03:29]} 30... Rf8 {[%clk 0:00:34]}
31. Rdf1 {[%clk 0:03:27.2]} 31... Nd3+ {[%clk 0:00:32.9]} 32. Kc2 {[%clk
0:03:25]} 32... Nf4 {[%clk 0:00:32.8]} 33. Rg4 {[%clk 0:03:17.8]} 33... c6
{[%clk 0:00:32.2]} 34. dxc6 {[%clk 0:03:15.3]} 34... bxc6 {[%clk 0:00:32.1]} 35.
b3 {[%clk 0:03:14]} 35... d5 {[%clk 0:00:31.5]} 36. cxd5 {[%clk 0:03:09.7]}
36... cxd5 {[%clk 0:00:31.4]} 37. Nc5 {[%clk 0:03:08.5]} 37... Rc8 {[%clk
0:00:31.3]} 38. b4 {[%clk 0:03:06.8]} 38... axb4 {[%clk 0:00:30.4]} 39. Kb3
{[%clk 0:03:05.6]} 39... Rxc5 {[%clk 0:00:29.9]} 40. Kxb4 {[%clk 0:03:04.8]}
40... Rc4+ {[%clk 0:00:29.5]} 41. Kb3 {[%clk 0:03:03.8]} 41... Bf6 {[%clk
0:00:25.1]} 42. h5 {[%clk 0:03:00.4]} 42... Rc8 {[%clk 0:00:23.6]} 43. h6 {[%clk
0:02:57.9]} 43... Rb8+ {[%clk 0:00:23.5]} 44. Kc2 {[%clk 0:02:55.8]} 44... Rh8
{[%clk 0:00:23.4]} 45. Rh1 {[%clk 0:02:54.1]} 45... Kf7 {[%clk 0:00:22.7]} 46.
a4 {[%clk 0:02:50.1]} 46... d4 {[%clk 0:00:21.8]} 47. h7 {[%clk 0:02:48.9]}
47... Rc8+ {[%clk 0:00:21.3]} 48. Kd2 {[%clk 0:02:47.3]} 48... Bh8 {[%clk
0:00:19.8]} 49. Rg8 {[%clk 0:02:45.8]} 49... Rxg8 {[%clk 0:00:18.6]} 50. hxg8=Q+
{[%clk 0:02:44.4]} 50... Kxg8 {[%clk 0:00:18.5]} 51. a5 {[%clk 0:02:43]} 51...
Nd5 {[%clk 0:00:17]} 52. a6 {[%clk 0:02:40.9]} 52... Bf6 {[%clk 0:00:15.1]} 53.
a7 {[%clk 0:02:39.1]} 53... Nc7 {[%clk 0:00:13.9]} 54. Rb1 {[%clk 0:02:37.5]}
54... Bg5+ {[%clk 0:00:10.8]} 55. Kd3 {[%clk 0:02:36.3]} 1-0

[Event "Live Chess"]
[Site "Chess.com"]
[Date "2023.05.21"]
[Round "-"]
[White "ViktorTheCoolBoy"]
[Black "LiamBellwood"]
[Result "1-0"]
[WhiteElo "2496"]
[BlackElo "2026"]
[TimeControl "300"]
[EndTime "19:34:14 PDT"]
[Termination "ViktorTheCoolBoy won by resignation"]

1. e4 {[%clk 0:04:58.2]} 1... e6 {[%clk 0:04:59.9]} 2. d4 {[%clk 0:04:56.3]}
2... d5 {[%clk 0:04:59.8]} 3. Nd2 {[%clk 0:04:55]} 3... Nc6 {[%clk 0:04:55.4]}
4. Ngf3 {[%clk 0:04:52.9]} 4... Nf6 {[%clk 0:04:52.6]} 5. e5 {[%clk 0:04:48]}
5... Nd7 {[%clk 0:04:51.4]} 6. c3 {[%clk 0:04:42]} 6... f6 {[%clk 0:04:50.6]} 7.
exf6 {[%clk 0:04:39.5]} 7... Qxf6 {[%clk 0:04:49.1]} 8. Bd3 {[%clk 0:04:38.2]}
8... Bd6 {[%clk 0:04:47.9]} 9. Nf1 {[%clk 0:04:35.7]} 9... O-O {[%clk
0:04:42.7]} 10. Ng3 {[%clk 0:04:34.1]} 10... e5 {[%clk 0:04:38]} 11. dxe5 {[%clk
0:04:13.6]} 11... Ndxe5 {[%clk 0:04:35.3]} 12. Be2 {[%clk 0:04:13.5]} 12... Bg4
{[%clk 0:04:18.1]} 13. Qxd5+ {[%clk 0:04:04.2]} 13... Kh8 {[%clk 0:04:14.2]} 14.
O-O {[%clk 0:04:01]} 14... Bxf3 {[%clk 0:04:08.2]} 15. Bxf3 {[%clk 0:03:59.9]}
15... Nxf3+ {[%clk 0:04:04.5]} 16. Qxf3 {[%clk 0:03:58.3]} 16... Qxf3 {[%clk
0:04:04.4]} 17. gxf3 {[%clk 0:03:57.1]} 17... Rxf3 {[%clk 0:04:04.3]} 18. Be3
{[%clk 0:03:56]} 18... Re8 {[%clk 0:03:43.3]} 19. Rfe1 {[%clk 0:03:53.9]} 19...
Bxg3 {[%clk 0:03:37.8]} 20. hxg3 {[%clk 0:03:52.1]} 20... Rf7 {[%clk 0:03:28.5]}
21. Bc5 {[%clk 0:03:48.5]} 21... Ne5 {[%clk 0:03:23.2]} 22. Kg2 {[%clk
0:03:46.3]} 22... b6 {[%clk 0:03:21.4]} 23. Bd4 {[%clk 0:03:45]} 23... Rfe7
{[%clk 0:03:20.4]} 24. Re3 {[%clk 0:03:39.7]} 24... Nc4 {[%clk 0:03:12.5]} 25.
Rxe7 {[%clk 0:03:37.6]} 25... Rxe7 {[%clk 0:03:12.4]} 26. b3 {[%clk 0:03:36.9]}
26... Nd6 {[%clk 0:03:05.6]} 27. Rd1 {[%clk 0:03:35.8]} 27... Re2 {[%clk
0:03:03.6]} 28. c4 {[%clk 0:03:32.1]} 28... h6 {[%clk 0:02:41]} 29. a4 {[%clk
0:03:28.1]} 29... Nf5 {[%clk 0:02:28.4]} 30. Ba1 {[%clk 0:03:19.7]} 30... Ne3+
{[%clk 0:02:26.4]} 31. Kf3 {[%clk 0:03:18.4]} 1-0

[Event "Live Chess"]
[Site "Chess.com"]
[Date "2023.05.21"]
[Round "-"]
[White "manthanit"]
[Black "ramses-IIG"]
[Result "1-0"]
[WhiteElo "1068"]
[BlackElo "870"]
[TimeControl "300"]
[EndTime "19:34:47 PDT"]
[Termination "manthanit won by resignation"]

1. e4 {[%clk 0:04:58.6]} 1... d5 {[%clk 0:04:59.9]} 2. exd5 {[%clk 0:04:57.6]}
2... Qxd5 {[%clk 0:04:59.8]} 3. Nc3 {[%clk 0:04:56.7]} 3... Qe6+ {[%clk
0:04:59.7]} 4. Nge2 {[%clk 0:04:50.4]} 4... Qg6 {[%clk 0:04:59.6]} 5. g3 {[%clk
0:04:49.2]} 5... c6 {[%clk 0:04:57.8]} 6. Bg2 {[%clk 0:04:48.7]} 6... e5 {[%clk
0:04:55.8]} 7. O-O {[%clk 0:04:47.1]} 7... h5 {[%clk 0:04:53.1]} 8. d4 {[%clk
0:04:45.4]} 8... h4 {[%clk 0:04:49.7]} 9. dxe5 {[%clk 0:04:41.5]} 9... Nd7
{[%clk 0:04:40.3]} 10. Re1 {[%clk 0:04:39.8]} 10... hxg3 {[%clk 0:04:39.2]} 11.
fxg3 {[%clk 0:04:38.6]} 11... Qh5 {[%clk 0:04:32.3]} 12. h3 {[%clk 0:04:30.8]}
12... Nxe5 {[%clk 0:04:23.4]} 13. Nf4 {[%clk 0:04:28.6]} 13... Qg5 {[%clk
0:04:02.4]} 14. Nfd5 {[%clk 0:04:21.8]} 14... Be7 {[%clk 0:03:36]} 15. Bxg5
{[%clk 0:04:18.5]} 1-0

[Event "Live Chess"]
[Site "Chess.com"]
[Date "2023.05.21"]
[Round "-"]
[White "ChessClubLive"]
[Black "raminguy"]
[Result "1-0"]
[WhiteElo "1968"]
[BlackElo "1958"]
[TimeControl "300"]
[EndTime "19:35:45 PDT"]
[Termination "ChessClubLive won by resignation"]

1. e4 {[%clk 0:04:58]} 1... e5 {[%clk 0:04:59.1]} 2. f4 {[%clk 0:04:55.8]} 2...
exf4 {[%clk 0:04:57.6]} 3. Nf3 {[%clk 0:04:53.1]} 3... g5 {[%clk 0:04:57]} 4.
Bc4 {[%clk 0:04:50.8]} 4... Bg7 {[%clk 0:04:56.3]} 5. O-O {[%clk 0:04:47.2]}
5... h6 {[%clk 0:04:55.7]} 6. d4 {[%clk 0:04:43.7]} 6... d6 {[%clk 0:04:54.3]}
7. Nbd2 {[%clk 0:04:37.9]} 7... Nf6 {[%clk 0:04:52.7]} 8. c3 {[%clk 0:04:32.9]}
8... O-O {[%clk 0:04:51.5]} 9. Qc2 {[%clk 0:04:12]} 9... Nc6 {[%clk 0:04:45.9]}
10. a3 {[%clk 0:04:10.3]} 10... Ng4 {[%clk 0:04:43.5]} 11. Nb1 {[%clk
0:03:48.9]} 11... a6 {[%clk 0:04:29.7]} 12. h3 {[%clk 0:03:47.5]} 12... Nf6
{[%clk 0:04:27.3]} 13. Nbd2 {[%clk 0:03:42]} 13... b5 {[%clk 0:04:24.7]} 14. Ba2
{[%clk 0:03:41]} 14... Ne7 {[%clk 0:04:20]} 15. Bb1 {[%clk 0:03:38.4]} 15... Nh5
{[%clk 0:04:15.9]} 16. e5 {[%clk 0:03:33.8]} 16... Bf5 {[%clk 0:04:14.1]} 17.
Qd1 {[%clk 0:03:14.8]} 17... Bxb1 {[%clk 0:04:11.9]} 18. Rxb1 {[%clk 0:03:13.7]}
18... dxe5 {[%clk 0:04:09.6]} 19. Nxe5 {[%clk 0:03:10.6]} 19... Bxe5 {[%clk
0:04:08.2]} 20. Qxh5 {[%clk 0:03:06.8]} 20... Bg7 {[%clk 0:04:02.2]} 21. Ne4
{[%clk 0:02:59.2]} 21... Nf5 {[%clk 0:03:58.2]} 22. Bxf4 {[%clk 0:02:45.4]}
22... gxf4 {[%clk 0:03:45.8]} 23. Qxf5 {[%clk 0:02:42.8]} 23... Rc8 {[%clk
0:03:28.5]} 24. Rxf4 {[%clk 0:02:38.4]} 24... c6 {[%clk 0:03:20.5]} 25. Rg4
{[%clk 0:02:35.7]} 25... Kh8 {[%clk 0:03:14.5]} 26. Rf1 {[%clk 0:02:23.3]} 26...
Qe7 {[%clk 0:03:11.1]} 27. Qh5 {[%clk 0:02:08.6]} 27... Rce8 {[%clk 0:03:03.6]}
28. Nf6 {[%clk 0:02:05]} 28... Rd8 {[%clk 0:02:16.1]} 29. Rxg7 {[%clk
0:01:46.4]} 29... Kxg7 {[%clk 0:02:14.1]} 30. Qg4+ {[%clk 0:01:44.7]} 30... Kh8
{[%clk 0:02:12.5]} 31. Qf5 {[%clk 0:01:43.8]} 31... Qe3+ {[%clk 0:01:57.5]} 32.
Kh1 {[%clk 0:01:42]} 1-0

[Event "Live Chess"]
[Site "Chess.com"]
[Date "2023.05.21"]
[Round "-"]
[White "romchyk1219"]
[Black "ViktorTheCoolBoy"]
[Result "0-1"]
[WhiteElo "639"]
[BlackElo "2496"]
[TimeControl "300"]
[EndTime "19:35:45 PDT"]
[Termination "ViktorTheCoolBoy won by resignation"]

1. e4 {[%clk 0:04:57.6]} 1... g6 {[%clk 0:04:59.1]} 2. d4 {[%clk 0:04:54.7]}
2... Bg7 {[%clk 0:04:59]} 3. Nf3 {[%clk 0:04:53.5]} 3... c6 {[%clk 0:04:57.4]}
4. g3 {[%clk 0:04:52.8]} 4... d5 {[%clk 0:04:56]} 5. e5 {[%clk 0:04:50.9]} 5...
f6 {[%clk 0:04:55]} 6. exf6 {[%clk 0:04:49.3]} 6... Nxf6 {[%clk 0:04:53.7]} 7.
Bg2 {[%clk 0:04:49.2]} 7... O-O {[%clk 0:04:52.9]} 8. O-O {[%clk 0:04:47.8]}
8... Ne4 {[%clk 0:04:51.9]} 9. Nfd2 {[%clk 0:04:35.8]} 9... Nd6 {[%clk
0:04:48.8]} 10. Nf3 {[%clk 0:04:32.8]} 10... Nd7 {[%clk 0:04:47.4]} 11. Re1
{[%clk 0:04:29.8]} 11... Nf6 {[%clk 0:04:46]} 12. Bg5 {[%clk 0:04:22.2]} 12...
Nfe4 {[%clk 0:04:44.4]} 13. Bd2 {[%clk 0:04:16.1]} 13... Nc4 {[%clk 0:04:41.9]}
14. Bb4 {[%clk 0:04:11]} 14... Nxb2 {[%clk 0:04:38.1]} 15. Nfd2 {[%clk 0:04:02]}
15... Nxd1 {[%clk 0:04:35.9]} 0-1

[Event "Live Chess"]
[Site "Chess.com"]
[Date "2023.05.21"]
[Round "-"]
[White "Olisingapore"]
[Black "xx_blindpuffin_xx"]
[Result "0-1"]
[WhiteElo "1789"]
[BlackElo "2185"]
[TimeControl "300"]
[EndTime "19:35:56 PDT"]
[Termination "xx_blindpuffin_xx won by resignation"]

1. d4 {[%clk 0:04:57.4]} 1... d6 {[%clk 0:04:51.9]} 2. c4 {[%clk 0:04:53.7]}
2... Nd7 {[%clk 0:04:51.8]} 3. g3 {[%clk 0:04:50.1]} 3... c5 {[%clk 0:04:27.8]}
4. d5 {[%clk 0:04:45.8]} 4... Ngf6 {[%clk 0:04:25.2]} 5. Bg2 {[%clk 0:04:43.7]}
5... g6 {[%clk 0:04:22.1]} 6. Nf3 {[%clk 0:04:40.8]} 6... Bg7 {[%clk 0:04:21.5]}
7. O-O {[%clk 0:04:38.9]} 7... O-O {[%clk 0:04:04.7]} 8. Nc3 {[%clk 0:04:38.3]}
8... a6 {[%clk 0:04:02.6]} 9. a4 {[%clk 0:04:35.5]} 9... Rb8 {[%clk 0:03:56.5]}
10. e4 {[%clk 0:04:31.1]} 10... Ne8 {[%clk 0:03:36.2]} 11. Re1 {[%clk
0:04:28.6]} 11... Nc7 {[%clk 0:03:32.5]} 12. Qc2 {[%clk 0:04:24.4]} 12... b5
{[%clk 0:03:30.3]} 13. axb5 {[%clk 0:04:22.7]} 13... axb5 {[%clk 0:03:28.6]} 14.
cxb5 {[%clk 0:04:21.8]} 14... Nxb5 {[%clk 0:03:28.2]} 15. Nxb5 {[%clk
0:04:19.9]} 15... Rxb5 {[%clk 0:03:28.1]} 16. Bf1 {[%clk 0:04:14.5]} 16... Rb4
{[%clk 0:03:21.2]} 17. Bd2 {[%clk 0:04:11.4]} 17... Rxb2 {[%clk 0:03:19.1]} 18.
Qc1 {[%clk 0:04:03.2]} 18... Rb3 {[%clk 0:03:03.7]} 19. Bc4 {[%clk 0:03:55.3]}
19... Rxf3 {[%clk 0:03:01.2]} 20. Be2 {[%clk 0:03:49.6]} 20... Rb3 {[%clk
0:02:55.6]} 21. Ra8 {[%clk 0:03:23.4]} 21... Qb6 {[%clk 0:02:37.8]} 22. Qb1
{[%clk 0:03:09.5]} 22... Rxb1 {[%clk 0:02:35.9]} 0-1

[Event "Live Chess"]
[Site "Chess.com"]
[Date "2023.05.21"]
[Round "-"]
[White "worldchessleaguelive"]
[Black "grillage"]
[Result "0-1"]
[WhiteElo "1353"]
[BlackElo "1809"]
[TimeControl "300"]
[EndTime "19:35:59 PDT"]
[Termination "grillage won by checkmate"]

1. d4 {[%clk 0:04:56.5]} 1... Nf6 {[%clk 0:04:56.9]} 2. Bf4 {[%clk 0:04:54.7]}
2... e6 {[%clk 0:04:55.2]} 3. e3 {[%clk 0:04:53.9]} 3... b6 {[%clk 0:04:54.2]}
4. Nf3 {[%clk 0:04:52.9]} 4... Bb7 {[%clk 0:04:53.7]} 5. Be2 {[%clk 0:04:51.3]}
5... Be7 {[%clk 0:04:52.3]} 6. O-O {[%clk 0:04:47.6]} 6... O-O {[%clk
0:04:50.6]} 7. Nbd2 {[%clk 0:04:44.2]} 7... c5 {[%clk 0:04:49.1]} 8. c3 {[%clk
0:04:42.6]} 8... d6 {[%clk 0:04:47.4]} 9. h3 {[%clk 0:04:39.4]} 9... cxd4 {[%clk
0:04:45.7]} 10. cxd4 {[%clk 0:04:37.2]} 10... Nbd7 {[%clk 0:04:44.8]} 11. Rc1
{[%clk 0:04:32.9]} 11... Re8 {[%clk 0:04:34.3]} 12. Bb5 {[%clk 0:04:26.4]} 12...
a6 {[%clk 0:04:29.5]} 13. Bc6 {[%clk 0:04:25]} 13... Qb8 {[%clk 0:04:08]} 14.
Bxd7 {[%clk 0:04:10.2]} 14... Nxd7 {[%clk 0:04:05.2]} 15. Nb3 {[%clk 0:04:01.6]}
15... Nf6 {[%clk 0:04:02.1]} 16. Re1 {[%clk 0:03:49.4]} 16... Qd8 {[%clk
0:03:58.8]} 17. Nbd2 {[%clk 0:03:42]} 17... Bf8 {[%clk 0:03:56.7]} 18. e4 {[%clk
0:03:35.8]} 18... e5 {[%clk 0:03:54.4]} 19. dxe5 {[%clk 0:03:33.2]} 19... dxe5
{[%clk 0:03:29.8]} 20. Bxe5 {[%clk 0:03:32.2]} 20... Bc5 {[%clk 0:03:23.1]} 21.
Bxf6 {[%clk 0:03:25.5]} 21... Qxf6 {[%clk 0:03:21.3]} 22. e5 {[%clk 0:03:06]}
22... Qh6 {[%clk 0:03:15.9]} 23. Qb3 {[%clk 0:02:56.5]} 23... Rad8 {[%clk
0:03:06.1]} 24. Rxc5 {[%clk 0:02:51.1]} 24... Rxd2 {[%clk 0:02:58.8]} 25. Rc7
{[%clk 0:02:18.7]} 25... Bd5 {[%clk 0:02:47.7]} 26. Qa3 {[%clk 0:01:16.8]} 26...
Bxf3 {[%clk 0:02:32.7]} 27. Qxf3 {[%clk 0:01:14]} 27... Qe6 {[%clk 0:02:17.1]}
28. Qc3 {[%clk 0:01:04.2]} 28... Red8 {[%clk 0:01:58]} 29. Rc6 {[%clk
0:00:54.3]} 29... Qf5 {[%clk 0:01:52.8]} 30. Qe3 {[%clk 0:00:44.1]} 30... h6
{[%clk 0:01:39.8]} 31. Rxb6 {[%clk 0:00:40.1]} 31... R8d3 {[%clk 0:01:32.5]} 32.
Qc5 {[%clk 0:00:30.8]} 32... Rd4 {[%clk 0:01:20.1]} 33. Rf1 {[%clk 0:00:19.2]}
33... Rd1 {[%clk 0:01:06.7]} 34. Rb8+ {[%clk 0:00:17.7]} 34... Kh7 {[%clk
0:01:03.6]} 35. Qc8 {[%clk 0:00:16.6]} 35... Rxf1+ {[%clk 0:01:01.4]} 36. Kxf1
{[%clk 0:00:13.4]} 36... Rd1+ {[%clk 0:00:56.5]} 37. Ke2 {[%clk 0:00:12.6]}
37... Qd3# {[%clk 0:00:56]} 0-1

[Event "Live Chess"]
[Site "Chess.com"]
[Date "2023.05.21"]
[Round "-"]
[White "Pablo_dmp"]
[Black "KeithArkell"]
[Result "0-1"]
[WhiteElo "1861"]
[BlackElo "2573"]
[TimeControl "300"]
[EndTime "19:36:20 PDT"]
[Termination "KeithArkell won on time"]

1. e4 {[%clk 0:04:58.5]} 1... d5 {[%clk 0:04:58.2]} 2. exd5 {[%clk 0:04:56.1]}
2... Nf6 {[%clk 0:04:57.5]} 3. c4 {[%clk 0:04:54.3]} 3... c6 {[%clk 0:04:56.5]}
4. dxc6 {[%clk 0:04:49.9]} 4... Nxc6 {[%clk 0:04:55.8]} 5. Nc3 {[%clk
0:04:41.3]} 5... e5 {[%clk 0:04:54]} 6. Be2 {[%clk 0:04:34.6]} 6... Bc5 {[%clk
0:04:51.7]} 7. d3 {[%clk 0:04:30.1]} 7... h6 {[%clk 0:04:44.1]} 8. Nf3 {[%clk
0:04:22.2]} 8... O-O {[%clk 0:04:42.7]} 9. O-O {[%clk 0:04:20.4]} 9... Bf5
{[%clk 0:04:36.5]} 10. Be3 {[%clk 0:04:15.1]} 10... Bxe3 {[%clk 0:04:31.6]} 11.
fxe3 {[%clk 0:04:15]} 11... e4 {[%clk 0:04:30.9]} 12. dxe4 {[%clk 0:04:09.1]}
12... Nxe4 {[%clk 0:04:29.9]} 13. Qxd8 {[%clk 0:04:05.6]} 13... Rfxd8 {[%clk
0:04:27.4]} 14. Nxe4 {[%clk 0:03:51.5]} 14... Bxe4 {[%clk 0:04:26]} 15. Rad1
{[%clk 0:03:48.5]} 15... Bc2 {[%clk 0:04:21.3]} 16. Rxd8+ {[%clk 0:03:35.8]}
16... Rxd8 {[%clk 0:04:21.2]} 17. Rc1 {[%clk 0:03:34.5]} 17... Be4 {[%clk
0:04:19]} 18. Kf2 {[%clk 0:03:26.5]} 18... g5 {[%clk 0:04:17.4]} 19. Rd1 {[%clk
0:03:20.7]} 19... Re8 {[%clk 0:04:15.3]} 20. Nd4 {[%clk 0:03:16.3]} 20... Ne5
{[%clk 0:04:13.4]} 21. h3 {[%clk 0:03:09]} 21... Kg7 {[%clk 0:04:07.9]} 22. Bf3
{[%clk 0:03:01.4]} 22... Bxf3 {[%clk 0:04:06.7]} 23. Nxf3 {[%clk 0:03:01.2]}
23... Nxc4 {[%clk 0:04:05.6]} 24. b3 {[%clk 0:02:52.1]} 24... Nb6 {[%clk
0:03:46.8]} 25. Nd4 {[%clk 0:02:45.4]} 25... Re5 {[%clk 0:03:38.8]} 26. g4
{[%clk 0:02:35.9]} 26... Nd5 {[%clk 0:03:25.4]} 27. Nf5+ {[%clk 0:02:31.7]}
27... Kf6 {[%clk 0:03:24.4]} 28. Nxh6 {[%clk 0:02:18]} 28... Nxe3 {[%clk
0:03:19.3]} 29. Re1 {[%clk 0:02:13.8]} 29... Nc2 {[%clk 0:03:01.9]} 30. Rxe5
{[%clk 0:02:11.7]} 30... Kxe5 {[%clk 0:03:01.1]} 31. Nxf7+ {[%clk 0:02:10.7]}
31... Kf4 {[%clk 0:03:00.4]} 32. Nd6 {[%clk 0:02:01.7]} 32... Nb4 {[%clk
0:02:53.1]} 33. Nxb7 {[%clk 0:01:54.1]} 33... Nxa2 {[%clk 0:02:51.7]} 34. Nc5
{[%clk 0:01:39.6]} 34... Ke5 {[%clk 0:02:49.2]} 35. Ke3 {[%clk 0:01:33.5]} 35...
Nc3 {[%clk 0:02:43.1]} 36. Nd3+ {[%clk 0:01:26.7]} 36... Kd5 {[%clk 0:02:34.8]}
37. Nb4+ {[%clk 0:01:06.3]} 37... Kc5 {[%clk 0:02:31.4]} 38. Nd3+ {[%clk
0:01:03.6]} 38... Kb5 {[%clk 0:02:30.3]} 39. Ne5 {[%clk 0:01:01.2]} 39... Nd5+
{[%clk 0:02:20.3]} 40. Ke4 {[%clk 0:00:56.8]} 40... Ne7 {[%clk 0:02:08.7]} 41.
Nf7 {[%clk 0:00:54.8]} 41... Kb4 {[%clk 0:02:07.9]} 42. Nxg5 {[%clk 0:00:53.3]}
42... Kxb3 {[%clk 0:02:07.4]} 43. Ne6 {[%clk 0:00:49.9]} 43... a5 {[%clk
0:02:05.4]} 44. h4 {[%clk 0:00:46.4]} 44... Kc4 {[%clk 0:02:03.4]} 45. Nd4
{[%clk 0:00:31.4]} 45... a4 {[%clk 0:02:01.9]} 46. g5 {[%clk 0:00:26.7]} 46...
a3 {[%clk 0:02:01.2]} 47. Nc2 {[%clk 0:00:18.4]} 47... a2 {[%clk 0:02:00.4]} 48.
Na1 {[%clk 0:00:17.2]} 48... Kc3 {[%clk 0:01:57.4]} 49. h5 {[%clk 0:00:15.1]}
49... Kb2 {[%clk 0:01:55.9]} 50. g6 {[%clk 0:00:13.9]} 50... Ng8 {[%clk
0:01:53.9]} 51. Ke5 {[%clk 0:00:11.7]} 51... Kxa1 {[%clk 0:01:53.1]} 52. Ke6
{[%clk 0:00:08.6]} 52... Kb2 {[%clk 0:01:51.5]} 53. Kf7 {[%clk 0:00:08.5]} 53...
Nh6+ {[%clk 0:01:50.7]} 54. Kg7 {[%clk 0:00:06.5]} 54... Ng4 {[%clk 0:01:49.2]}
55. h6 {[%clk 0:00:05.2]} 55... a1=Q {[%clk 0:01:48.6]} 56. h7 {[%clk
0:00:03.7]} 56... Kc2+ {[%clk 0:01:46.8]} 57. Kg8 {[%clk 0:00:00.4]} 57... Nh6+
{[%clk 0:01:45.6]} 0-1